fUSD/lending_fUSD_20250212
["ID","MTS","AMOUNT","RATE_DAILY","PERIOD"]
[352834933,1739353893120,-500.0,0.00017808,2]
[352834934,1739353893129,-500.0,0.00017808,2]
[352834935,1739353893139,-500.0,0.00017808,2]
[352834936,1739353893149,-500.0,0.00017808,2]
[352834937,1739353893158,-525.31,0.00017808,2]
[352834938,1739353893168,-2037.7,0.00017808,2]
[352834939,1739353893177,-357.33473957,0.00017808,2]
[352834940,1739353893187,-151.83031656,0.00017808,2]
[352834941,1739353893197,-500.0,0.00017808,2]
[352834942,1739353893207,-564.87,0.00017808,2]
[352834943,1739353893218,-500.0,0.00017808,2]
[352834944,1739353893228,-500.0,0.00017808,2]
[352834945,1739353893238,-500.0,0.00017808,2]
[352834946,1739353893248,-500.0,0.00017808,2]
[352834947,1739353893259,-872.5,0.00017808,2]
[352834948,1739353893269,-276.32445202,0.00017808,2]
[352834949,1739353893279,-500.0,0.00017808,2]
[352834950,1739353893289,-500.0,0.00017808,2]
[352834951,1739353893299,-500.0,0.00017808,2]
[352834952,1739353893309,-500.0,0.00017808,2]
[352834953,1739353893320,-606.21,0.00017808,2]
[352834954,1739353893332,-604.18,0.00017808,2]
[352834955,1739353893343,-500.0,0.00017808,2]
[352834956,1739353893353,-500.0,0.00017808,2]
[352834957,1739353893363,-328.42,0.00017808,2]
[352834958,1739353893373,-607.52,0.00017808,2]
[352834959,1739353893383,-588.36,0.00017808,2]
[352834960,1739353893394,-604.87,0.00017808,2]
[352834961,1739353893404,-500.0,0.00017808,2]
[352834962,1739353893415,-523.64,0.00017808,2]
[352834963,1739353893424,-500.0,0.00017808,2]
[352834964,1739353893434,-731.56,0.00017808,2]
[352834965,1739353893445,-668.89,0.00017808,2]
[352834966,1739353893455,-561.0479703,0.00017808,2]
[352834967,1739353893465,-500.0,0.00017808,2]
[352834968,1739353893475,-1419.35,0.00017808,2]
[352834969,1739353893485,-500.0,0.00017808,2]
[352834970,1739353893495,-500.0,0.00017808,2]
[352834971,1739353893505,-646.31,0.00017808,2]
[352834972,1739353893515,-513.32,0.00017808,2]
[352834973,1739353893524,-500.0,0.00017808,2]
[352834974,1739353893534,-500.0,0.00017808,2]
[352834975,1739353893544,-500.0,0.00017808,2]
[352834976,1739353893555,-500.0,0.00017808,2]
[352834977,1739353893565,-500.0,0.00017808,2]
[352834978,1739353893574,-827.83,0.00017808,2]
[352834979,1739353893583,-500.0,0.00017808,2]
[352834980,1739353893593,-707.77,0.00017808,2]
[352834981,1739353893603,-500.0,0.00017808,2]
[352834982,1739353893613,-676.72,0.00017808,2]
[352834983,1739353893622,-500.0,0.00017808,2]
[352834984,1739353893631,-587.14257807,0.00017808,2]
[352834985,1739353893640,-583.33,0.00017808,2]
[352834986,1739353893649,-500.0,0.00017808,2]
[352834987,1739353893659,-731.76,0.00017808,2]
[352834988,1739353893670,-500.0,0.00017808,2]
[352834989,1739353893679,-500.0,0.00017808,2]
[352834990,1739353893689,-500.0,0.00017808,2]
[352834991,1739353893699,-819.97,0.00017808,2]
[352834992,1739353893708,-500.0,0.00017808,2]
[352834993,1739353893718,-500.0,0.00017808,2]
[352834994,1739353893727,-500.0,0.00017808,2]
[352834995,1739353893737,-500.0,0.00017808,2]
[352834996,1739353893746,-500.0,0.00017808,2]
[352834997,1739353893756,-740.43,0.00017808,2]
[352834998,1739353893766,-500.0,0.00017808,2]
[352834999,1739353893776,-500.0,0.00017808,2]
[352835000,1739353893785,-600.0,0.00017808,2]
[352835001,1739353893795,-500.0,0.00017824,2]
[352835002,1739353893804,-329.12,0.00017836,2]
[352835003,1739353893814,-500.0,0.00017904,2]
[352835004,1739353893824,-500.0,0.00017904,2]
[352835005,1739353893834,-500.0,0.00017924,2]
[352835006,1739353893843,-291.385485,0.00017945,2]
[352835007,1739353893853,-307.896454,0.00017945,2]
[352835008,1739353893862,-1242.33,0.00017945,2]
[352835009,1739353894011,-500.0,0.00017945,2]
[352835010,1739353894034,-578.81701859,0.00017945,2]
[352835011,1739353894044,-2071.67,0.00017945,2]
[352835012,1739353894054,-500.0,0.00017945,2]
[352835013,1739353894064,-502.84088522,0.00017945,2]
[352835014,1739353894075,-500.0,0.00017945,2]
[352835015,1739353894084,-500.0,0.00017945,2]
[352835016,1739353894094,-592.58,0.00017945,2]
[352835017,1739353894104,-633.74,0.00017945,2]
[352835018,1739353894113,-516.88,0.00017945,2]
[352835019,1739353894124,-500.0,0.00017945,2]
[352835020,1739353894134,-500.0,0.00017945,2]
[352835021,1739353894144,-500.0,0.00017945,2]
[352835022,1739353894154,-500.0,0.00017945,2]
[352835023,1739353894164,-500.0,0.00017945,2]
[352835024,1739353894174,-498.28736859,0.00017945,2]
[352835025,1739353894184,-500.0,0.00017945,2]
[352835026,1739353894194,-632.07,0.00017945,2]
[352835027,1739353894203,-628.15,0.00017945,2]
[352835028,1739353894213,-571.09,0.00017945,2]
[352835029,1739353894223,-436.22323713,0.00017945,2]
[352835030,1739353894233,-500.0,0.00017945,2]
[352835031,1739353894244,-500.0,0.00017945,2]
[352835032,1739353894254,-500.0,0.00017945,2]
[352835033,1739353894264,-586.73,0.00017945,2]
[352835034,1739353894274,-520.83,0.00017945,2]
[352835035,1739353894284,-500.0,0.00017945,2]
[352835036,1739353894294,-632.93,0.00017945,2]
[352835037,1739353894304,-500.0,0.00017945,2]
[352835038,1739353894314,-500.0,0.00017945,2]
[352835039,1739353894324,-500.0,0.00017945,2]
[352835040,1739353894338,-452.36110749,0.00017945,2]
[352835041,1739353894348,-500.0,0.00017945,2]
[352835042,1739353894359,-500.0,0.00017945,2]
[352835043,1739353894371,-525.31,0.00017945,2]
[352835044,1739353894380,-2037.7,0.00017945,2]
[352835045,1739353894390,-500.0,0.00017945,2]
[352835046,1739353894400,-564.87,0.00017945,2]
[352835047,1739353894411,-500.0,0.00017945,2]
[352835048,1739353894423,-500.0,0.00017945,2]
[352835049,1739353894433,-500.0,0.00017945,2]
[352835050,1739353894444,-215.26425038,0.00017945,2]
[352835051,1739353894455,-872.5,0.00017945,2]
[352835052,1739353894464,-500.0,0.00017945,2]
[352835053,1739353894474,-500.0,0.00017945,2]
[352835054,1739353894483,-500.0,0.00017945,2]
[352835055,1739353894493,-500.0,0.00017945,2]
[352835056,1739353894504,-606.21,0.00017945,2]
[352835057,1739353894513,-604.18,0.00017945,2]
[352835058,1739353894523,-500.0,0.00017945,2]
[352835059,1739353894533,-500.0,0.00017945,2]
[352835060,1739353894543,-607.52,0.00017945,2]
[352835061,1739353894553,-588.36,0.00017945,2]
[352835062,1739353894563,-604.87,0.00017945,2]
[352835063,1739353894572,-500.0,0.00017945,2]
[352835064,1739353894582,-523.64,0.00017945,2]
[352835065,1739353894591,-500.0,0.00017945,2]
[352835066,1739353894601,-731.56,0.00017945,2]
[352835067,1739353894610,-668.89,0.00017945,2]
[352835068,1739353894620,-500.0,0.00017945,2]
[352835069,1739353894629,-1419.35,0.00017945,2]
[352835070,1739353894639,-500.0,0.00017945,2]
[352835071,1739353894649,-500.0,0.00017945,2]
[352835072,1739353894660,-646.31,0.00017945,2]
[352835073,1739353894669,-513.32,0.00017945,2]
[352835074,1739353894679,-500.0,0.00017945,2]
[352835075,1739353894689,-500.0,0.00017945,2]
[352835076,1739353894698,-500.0,0.00017945,2]
[352835077,1739353894708,-500.0,0.00017945,2]
[352835078,1739353894718,-500.0,0.00017945,2]
[352835079,1739353894727,-827.83,0.00017945,2]
[352835080,1739353894737,-500.0,0.00017945,2]
[352835081,1739353894747,-707.77,0.00017945,2]
[352835082,1739353894756,-500.0,0.00017945,2]
[352835083,1739353894766,-676.72,0.00017945,2]
[352835084,1739353894775,-500.0,0.00017945,2]
[352835085,1739353894784,-583.33,0.00017945,2]
[352835086,1739353894794,-500.0,0.00017945,2]
[352835087,1739353894803,-731.76,0.00017945,2]
[352835088,1739353894813,-500.0,0.00017945,2]
[352835089,1739353894823,-500.0,0.00017945,2]
[352835090,1739353894832,-500.0,0.00017945,2]
[352835091,1739353894841,-819.97,0.00017945,2]
[352835092,1739353894851,-642.42703512,0.00017945,2]
[352835093,1739353894860,-500.0,0.00017945,2]
[352835094,1739353894869,-500.0,0.00017945,2]
[352835095,1739353894879,-500.0,0.00017945,2]
[352835096,1739353894889,-500.0,0.00017945,2]
[352835097,1739353894898,-740.43,0.00017945,2]
[352835098,1739353894907,-500.0,0.00017945,2]
[352835099,1739353894918,-500.0,0.00017945,2]
[352835100,1739353894928,-962.74,0.00017959,7]
[352835101,1739353894937,-962.74,0.00017959,7]
[352835102,1739353894947,-1000.0,0.00017999,11]
[352835103,1739353894956,-21811.86493002,0.00018,30]
[352835104,1739353894966,-10000.0,0.00018,2]
[352835105,1739353894975,-1211.0,0.00018,8]
[352835106,1739353894985,-656.80997,0.00018,2]
[352835107,1739353894994,-500.0,0.00018024,2]
[352835108,1739353895004,-291.385485,0.00018082,2]
[352835109,1739353895014,-307.896454,0.00018082,2]
[352835110,1739353895023,-1242.33,0.00018082,2]
[352835111,1739353895032,-500.0,0.00018082,2]
[352835112,1739353895042,-2071.67,0.00018082,2]
[352835113,1739353895051,-500.0,0.00018082,2]
[352835114,1739353895061,-508.65439258,0.00018082,2]
[352835115,1739353895072,-539.32441642,0.00018082,2]
[352835116,1739353895082,-592.58,0.00018082,2]
[352835117,1739353895094,-633.74,0.00018082,2]
[352835118,1739353895105,-516.88,0.00018082,2]
[352835119,1739353895116,-176.46184699,0.00018082,2]
[352835120,1739353895127,-586.64407464,0.00018082,2]
[352835121,1739353895138,-548.43337592,0.00018082,2]
[352835122,1739353895149,-334.87814862,0.00018082,2]
[352835123,1739353895158,-500.0,0.00018082,2]
[352835124,1739353895168,-500.0,0.00018082,2]
[352835125,1739353895177,-632.07,0.00018082,2]
[352835126,1739353895187,-628.15,0.00018082,2]
[352835127,1739353895196,-571.09,0.00018082,2]
[352835128,1739353895205,-500.0,0.00018082,2]
[352835129,1739353895215,-500.0,0.00018082,2]
[352835130,1739353895224,-500.0,0.00018082,2]
[352835131,1739353895234,-586.73,0.00018082,2]
[352835132,1739353895243,-520.83,0.00018082,2]
[352835133,1739353895252,-500.0,0.00018082,2]
[352835134,1739353895261,-632.93,0.00018082,2]
[352835135,1739353895284,-500.0,0.00018082,2]
[352835136,1739353895301,-500.0,0.00018082,2]
[352835137,1739353895316,-500.0,0.00018082,2]
[352835138,1739353895337,-500.0,0.00018082,2]
[352835139,1739353895355,-500.0,0.00018082,2]
[352835140,1739353895374,-525.31,0.00018082,2]
[352835141,1739353895391,-2037.7,0.00018082,2]
[352835142,1739353895408,-500.0,0.00018082,2]
[352835143,1739353895426,-564.87,0.00018082,2]
[352835144,1739353895445,-323.09081915,0.00018082,2]
[352835145,1739353895463,-500.0,0.00018082,2]
[352835146,1739353895481,-374.02820421,0.00018082,2]
[352835147,1739353895499,-872.5,0.00018082,2]
[352835148,1739353895516,-500.0,0.00018082,2]
[352835149,1739353895532,-500.0,0.00018082,2]
[352835150,1739353895550,-500.0,0.00018082,2]
[352835151,1739353895565,-500.0,0.00018082,2]
[352835152,1739353895578,-606.21,0.00018082,2]
[352835153,1739353895594,-604.18,0.00018082,2]
[352835154,1739353895612,-590.64210056,0.00018082,2]
[352835155,1739353895624,-343.10468944,0.00018082,2]
[352835156,1739353895640,-607.52,0.00018082,2]
[352835157,1739353895657,-588.36,0.00018082,2]
[352835158,1739353895669,-604.87,0.00018082,2]
[352835159,1739353895686,-414.35349674,0.00018082,2]
[352835160,1739353895699,-523.64,0.00018082,2]
[352835161,1739353895715,-500.0,0.00018082,2]
[352835162,1739353895729,-731.56,0.00018082,2]
[352835163,1739353895743,-668.89,0.00018082,2]
[352835164,1739353895758,-1419.35,0.00018082,2]
[352835165,1739353895773,-500.0,0.00018082,2]
[352835166,1739353895787,-500.0,0.00018082,2]
[352835167,1739353895801,-646.31,0.00018082,2]
[352835168,1739353895816,-513.32,0.00018082,2]
[352835169,1739353895831,-500.0,0.00018082,2]
[352835170,1739353895846,-500.0,0.00018082,2]
[352835171,1739353895861,-500.0,0.00018082,2]
[352835172,1739353895876,-500.0,0.00018082,2]
[352835173,1739353895890,-500.0,0.00018082,2]
[352835174,1739353895905,-827.83,0.00018082,2]
[352835175,1739353895919,-500.0,0.00018082,2]
[352835176,1739353895934,-707.77,0.00018082,2]
[352835177,1739353895948,-500.0,0.00018082,2]
[352835178,1739353895961,-676.72,0.00018082,2]
[352835179,1739353895974,-500.0,0.00018082,2]
[352835180,1739353895988,-583.33,0.00018082,2]
[352835181,1739353896001,-500.0,0.00018082,2]
[352835182,1739353896015,-731.76,0.00018082,2]
[352835183,1739353896029,-500.0,0.00018082,2]
[352835184,1739353896043,-500.0,0.00018082,2]
[352835185,1739353896058,-500.0,0.00018082,2]
[352835186,1739353896071,-819.97,0.00018082,2]
[352835187,1739353896085,-500.0,0.00018082,2]
[352835188,1739353896098,-264.93,0.00018082,2]
[352835189,1739353896111,-500.0,0.00018082,2]
[352835190,1739353896125,-500.0,0.00018082,2]
[352835191,1739353896139,-740.43,0.00018082,2]
[352835192,1739353896152,-500.0,0.00018082,2]
[352835193,1739353896168,-500.0,0.00018082,2]
[352835194,1739353896181,-200.0,0.00018082,2]
[352835195,1739353896196,-2000.0,0.00018082,2]
[352835196,1739353896210,-152.0,0.00018082,5]
[352835197,1739353896224,-500.0,0.00018124,2]
[352835198,1739353896238,-40048.74071697,0.000182,5]
[352835199,1739353896251,-291.385485,0.00018219,2]
[352835200,1739353896264,-307.896454,0.00018219,2]
[352835201,1739353896278,-156.957399,0.00018219,2]
[352835202,1739353896291,-1242.33,0.00018219,2]
[352835203,1739353896306,-500.0,0.00018219,2]
[352835204,1739353896320,-2071.67,0.00018219,2]
[352835205,1739353896337,-500.0,0.00018219,2]
[352835206,1739353896351,-592.58,0.00018219,2]
[352835207,1739353896364,-633.74,0.00018219,2]
[352835208,1739353896378,-516.88,0.00018219,2]
[352835209,1739353896393,-500.0,0.00018219,2]
[352835210,1739353896408,-500.0,0.00018219,2]
[352835211,1739353896424,-632.07,0.00018219,2]
[352835212,1739353896438,-628.15,0.00018219,2]
[352835213,1739353896451,-571.09,0.00018219,2]
[352835214,1739353896465,-500.0,0.00018219,2]
[352835215,1739353896479,-500.0,0.00018219,2]
[352835216,1739353896492,-500.0,0.00018219,2]
[352835217,1739353896505,-586.73,0.00018219,2]
[352835218,1739353896518,-520.83,0.00018219,2]
[352835219,1739353896533,-500.0,0.00018219,2]
[352835220,1739353896546,-632.93,0.00018219,2]
[352835221,1739353896559,-500.0,0.00018219,2]
[352835222,1739353896573,-500.0,0.00018219,2]
[352835223,1739353896586,-500.0,0.00018219,2]
[352835224,1739353896600,-500.0,0.00018219,2]
[352835225,1739353896614,-225.28358871,0.00018219,2]
[352835226,1739353896627,-525.31,0.00018219,2]
[352835227,1739353896641,-2037.7,0.00018219,2]
[352835228,1739353896654,-500.0,0.00018219,2]
[352835229,1739353896668,-564.87,0.00018219,2]
[352835230,1739353896681,-500.0,0.00018219,2]
[352835231,1739353896694,-872.5,0.00018219,2]
[352835232,1739353896708,-500.0,0.00018219,2]
[352835233,1739353896720,-500.0,0.00018219,2]
[352835234,1739353896734,-500.0,0.00018219,2]
[352835235,1739353896747,-500.0,0.00018219,2]
[352835236,1739353896760,-606.21,0.00018219,2]
[352835237,1739353896773,-604.18,0.00018219,2]
[352835238,1739353896786,-607.52,0.00018219,2]
[352835239,1739353896800,-588.36,0.00018219,2]
[352835240,1739353896813,-604.87,0.00018219,2]
[352835241,1739353896826,-523.64,0.00018219,2]
[352835242,1739353896840,-500.0,0.00018219,2]
[352835243,1739353896853,-731.56,0.00018219,2]
[352835244,1739353896867,-668.89,0.00018219,2]
[352835245,1739353896881,-1419.35,0.00018219,2]
[352835246,1739353896894,-500.0,0.00018219,2]
[352835247,1739353896909,-296.15865298,0.00018219,2]
[352835248,1739353896924,-646.31,0.00018219,2]
[352835249,1739353896938,-513.32,0.00018219,2]
[352835250,1739353896951,-500.0,0.00018219,2]
[352835251,1739353896964,-500.0,0.00018219,2]
[352835252,1739353896978,-500.0,0.00018219,2]
[352835253,1739353896992,-500.0,0.00018219,2]
[352835254,1739353897006,-500.0,0.00018219,2]
[352835255,1739353897019,-827.83,0.00018219,2]
[352835256,1739353897033,-500.0,0.00018219,2]
[352835257,1739353897047,-707.77,0.00018219,2]
[352835258,1739353897060,-500.0,0.00018219,2]
[352835259,1739353897074,-676.72,0.00018219,2]
[352835260,1739353897087,-500.0,0.00018219,2]
[352835261,1739353897422,-583.33,0.00018219,2]
[352835262,1739353897433,-494.8562365,0.00018219,2]
[352835263,1739353897442,-731.76,0.00018219,2]
[352835264,1739353897452,-500.0,0.00018219,2]
[352835265,1739353897462,-500.0,0.00018219,2]
[352835266,1739353897472,-500.0,0.00018219,2]
[352835267,1739353897482,-819.97,0.00018219,2]
[352835268,1739353897492,-500.0,0.00018219,2]
[352835269,1739353897501,-500.0,0.00018219,2]
[352835270,1739353897511,-500.0,0.00018219,2]
[352835271,1739353897521,-740.43,0.00018219,2]
[352835272,1739353897530,-500.0,0.00018219,2]
[352835273,1739353897540,-437.28777098,0.00018219,2]
[352835274,1739353897550,-500.0,0.00018224,2]
[352835275,1739353897560,-962.74,0.00018233,7]
[352835276,1739353897569,-962.74,0.00018233,7]
[352835277,1739353897578,-51184.145523,0.000183,2]
[352835278,1739353897588,-216.18738582,0.000183,5]
[352835279,1739353897598,-3355.76867115,0.00018324,2]
[352835280,1739353897608,-500.0,0.00018324,2]
[352835281,1739353897618,-291.385485,0.00018356,2]
[352835282,1739353897627,-307.896454,0.00018356,2]
[352835283,1739353897638,-1242.33,0.00018356,2]
[352835284,1739353897647,-500.0,0.00018356,2]
[352835285,1739353897657,-2071.67,0.00018356,2]
[352835286,1739353897667,-500.0,0.00018356,2]
[352835287,1739353897678,-592.58,0.00018356,2]
[352835288,1739353897688,-633.74,0.00018356,2]
[352835289,1739353897698,-516.88,0.00018356,2]
[352835290,1739353897708,-500.0,0.00018356,2]
[352835291,1739353897718,-500.0,0.00018356,2]
[352835292,1739353897728,-632.07,0.00018356,2]
[352835293,1739353897738,-628.15,0.00018356,2]
[352835294,1739353897747,-571.09,0.00018356,2]
[352835295,1739353897757,-500.0,0.00018356,2]
[352835296,1739353897766,-500.0,0.00018356,2]
[352835297,1739353897776,-557.0,0.00018356,2]
[352835298,1739353897785,-586.73,0.00018356,2]
[352835299,1739353897794,-520.83,0.00018356,2]
[352835300,1739353897804,-539.72804381,0.00018356,2]
[352835301,1739353897813,-632.93,0.00018356,2]
[352835302,1739353897823,-500.0,0.00018356,2]
[352835303,1739353897832,-500.0,0.00018356,2]
[352835304,1739353897844,-500.0,0.00018356,2]
[352835305,1739353897855,-500.0,0.00018356,2]
[352835306,1739353897865,-525.31,0.00018356,2]
[352835307,1739353897874,-2037.7,0.00018356,2]
[352835308,1739353897884,-500.0,0.00018356,2]
[352835309,1739353897893,-564.87,0.00018356,2]
[352835310,1739353897903,-541.86228082,0.00018356,2]
[352835311,1739353897912,-872.5,0.00018356,2]
[352835312,1739353897924,-500.0,0.00018356,2]
[352835313,1739353897933,-500.0,0.00018356,2]
[352835314,1739353897944,-500.0,0.00018356,2]
[352835315,1739353897954,-500.0,0.00018356,2]
[352835316,1739353897963,-606.21,0.00018356,2]
[352835317,1739353897973,-604.18,0.00018356,2]
[352835318,1739353897983,-607.52,0.00018356,2]
[352835319,1739353897993,-588.36,0.00018356,2]
[352835320,1739353898003,-604.87,0.00018356,2]
[352835321,1739353898013,-523.64,0.00018356,2]
[352835322,1739353898023,-500.0,0.00018356,2]
[352835323,1739353898032,-731.56,0.00018356,2]
[352835324,1739353898042,-668.89,0.00018356,2]
[352835325,1739353898052,-1419.35,0.00018356,2]
[352835326,1739353898061,-500.0,0.00018356,2]
[352835327,1739353898071,-646.31,0.00018356,2]
[352835328,1739353898081,-513.32,0.00018356,2]
[352835329,1739353898090,-500.0,0.00018356,2]
[352835330,1739353898099,-500.0,0.00018356,2]
[352835331,1739353898109,-500.0,0.00018356,2]
[352835332,1739353898119,-500.0,0.00018356,2]
[352835333,1739353898128,-500.0,0.00018356,2]
[352835334,1739353898137,-827.83,0.00018356,2]
[352835335,1739353898147,-500.0,0.00018356,2]
[352835336,1739353898156,-707.77,0.00018356,2]
[352835337,1739353898166,-500.0,0.00018356,2]
[352835338,1739353898179,-676.72,0.00018356,2]
[352835339,1739353898188,-500.0,0.00018356,2]
[352835340,1739353898198,-583.33,0.00018356,2]
[352835341,1739353898207,-731.76,0.00018356,2]
[352835342,1739353898218,-280.08040486,0.00018356,2]
[352835343,1739353898227,-500.0,0.00018356,2]
[352835344,1739353898237,-500.0,0.00018356,2]
[352835345,1739353898246,-819.97,0.00018356,2]
[352835346,1739353898255,-500.0,0.00018356,2]
[352835347,1739353898266,-500.0,0.00018356,2]
[352835348,1739353898276,-500.0,0.00018356,2]
[352835349,1739353898286,-740.43,0.00018356,2]
[352835350,1739353898295,-500.0,0.00018356,2]
[352835351,1739353898305,-3502.9582099,0.00018387,2]
[352835352,1739353898315,-2510.887941,0.00018387,2]
[352835353,1739353898329,-1445.7137744,0.00018387,2]
[352835354,1739353898338,-1036.2742188,0.00018387,2]
[352835355,1739353898348,-2992672.5642661,0.000184,2]
[352835356,1739353898359,-500.0,0.00018424,2]
[352835357,1739353898368,-2259.0,0.0001843,2]
[352835358,1739353898378,-150.27981667,0.0001846,2]
[352835359,1739353898387,-36585.985523,0.0001849,2]
[352835360,1739353898397,-156.451248,0.00018493,2]
[352835361,1739353898406,-291.385485,0.00018493,2]
[352835362,1739353898416,-307.896454,0.00018493,2]
[352835363,1739353898430,-1242.33,0.00018493,2]
[352835364,1739353898440,-500.0,0.00018493,2]
[352835365,1739353898450,-2071.67,0.00018493,2]
[352835366,1739353898460,-278.58127759,0.00018493,2]
[352835367,1739353898470,-592.58,0.00018493,2]
[352835368,1739353898479,-633.74,0.00018493,2]
[352835369,1739353898489,-516.88,0.00018493,2]
[352835370,1739353898500,-500.0,0.00018493,2]
[352835371,1739353898510,-632.07,0.00018493,2]
[352835372,1739353898519,-628.15,0.00018493,2]
[352835373,1739353898529,-571.09,0.00018493,2]
[352835374,1739353898538,-500.0,0.00018493,2]
[352835375,1739353898548,-500.0,0.00018493,2]
[352835376,1739353898557,-586.73,0.00018493,2]
[352835377,1739353898567,-520.83,0.00018493,2]
[352835378,1739353898576,-632.93,0.00018493,2]
[352835379,1739353898586,-500.0,0.00018493,2]
[352835380,1739353898596,-500.0,0.00018493,2]
[352835381,1739353898605,-543.96959357,0.00018493,2]
[352835382,1739353898615,-365.92876498,0.00018493,2]
[352835383,1739353898625,-525.31,0.00018493,2]
[352835384,1739353898635,-2037.7,0.00018493,2]
[352835385,1739353898645,-500.0,0.00018493,2]
[352835386,1739353898655,-564.87,0.00018493,2]
[352835387,1739353898664,-872.5,0.00018493,2]
[352835388,1739353898677,-500.0,0.00018493,2]
[352835389,1739353898688,-500.0,0.00018493,2]
[352835390,1739353898697,-461.25,0.00018493,2]
[352835391,1739353898706,-500.0,0.00018493,2]
[352835392,1739353898716,-606.21,0.00018493,2]
[352835393,1739353898726,-604.18,0.00018493,2]
[352835394,1739353898735,-607.52,0.00018493,2]
[352835395,1739353898745,-588.36,0.00018493,2]
[352835396,1739353898755,-604.87,0.00018493,2]
[352835397,1739353898765,-523.64,0.00018493,2]
[352835398,1739353898774,-500.0,0.00018493,2]
[352835399,1739353898784,-731.56,0.00018493,2]
[352835400,1739353898794,-668.89,0.00018493,2]
[352835401,1739353898803,-1419.35,0.00018493,2]
[352835402,1739353898813,-500.0,0.00018493,2]
[352835403,1739353898822,-646.31,0.00018493,2]
[352835404,1739353898832,-513.32,0.00018493,2]
[352835405,1739353898841,-500.0,0.00018493,2]
[352835406,1739353898851,-500.0,0.00018493,2]
[352835407,1739353898860,-500.0,0.00018493,2]
[352835408,1739353898870,-500.0,0.00018493,2]
[352835409,1739353898879,-500.0,0.00018493,2]
[352835410,1739353898889,-827.83,0.00018493,2]
[352835411,1739353898899,-500.0,0.00018493,2]
[352835412,1739353898908,-707.77,0.00018493,2]
[352835413,1739353898918,-500.0,0.00018493,2]
[352835414,1739353898931,-676.72,0.00018493,2]
[352835415,1739353898941,-500.0,0.00018493,2]
[352835416,1739353898950,-583.33,0.00018493,2]
[352835417,1739353898961,-731.76,0.00018493,2]
[352835418,1739353898970,-500.0,0.00018493,2]
[352835419,1739353898980,-500.0,0.00018493,2]
[352835420,1739353898989,-819.97,0.00018493,2]
[352835421,1739353898999,-500.0,0.00018493,2]
[352835422,1739353899008,-500.0,0.00018493,2]
[352835423,1739353899017,-535.58538544,0.00018493,2]
[352835424,1739353899027,-740.43,0.00018493,2]
[352835425,1739353899037,-500.0,0.00018493,2]
[352835426,1739353899047,-962.74,0.00018507,7]
[352835427,1739353899056,-962.74,0.00018507,7]
[352835428,1739353899067,-500.0,0.00018524,2]
[352835429,1739353899077,-154.55,0.000186,2]
[352835430,1739353899087,-154.55,0.000186,2]
[352835431,1739353899096,-2259.0,0.0001862,2]
[352835432,1739353899106,-500.0,0.00018624,2]